Workbook

Sheet Sheet1
A1: Pellet Feed Rate | B1: 10000 | C1: kg/s
A2: Bed void fraction | B2: 0.35
A3: Pellet diameter/m | B3: =CONVERT(0.5,"in","m") -> 0.0127 | F3: 0
A5: mass flow rates | B5: kg/s | D5: Pressures | E5: Pa | G5: Split one | H5: Split two
A6: m_0 | B6: 560.2105611 | D6: P_0 | E6: =CONVERT(1,"atm","Pa") -> 101325 | F6: Stream 6 | G6: =m_2/(m_1+m_2) -> 0.5356411223 | H6: =m_3/(m_5+m_4+m_3) -> 0.3333333389 | I6: Stream 10 | P6: =P12-G14 -> 101325
A7: m_1 | B7: 260.1387474 | D7: P_1 | E7: =CONVERT(1,"atm","Pa") -> 101325 | F7: Stream 3 | H7: =m_4/(m_5+m_4+m_3) -> 0.3333333223 | I7: Stream 9
A8: m_2 | B8: 300.0718137 | D8: P_2 | E8: 101325 | H8: =m_5/(m_5+m_4+m_3) -> 0.3333333389 | I8: Stream 8
A9: m_3 | B9: 100.0239395 | D9: Temprature
A10: m_4 | B10: 100.0239346
A11: m_5 | B11: 100.0239395 | D11: 10
L12: =P_0+F_0-G19 -> 96325 | P12: =P15+F_1 -> 106325
A13: Zones | B13: L/m | C13: W/m | D13: z/m | E13: r/(kg/m3) | F13: m/(kg/m s) | G13: DP/Pa
A14: UDD | B14: 5 | C14: 5 | D14: 0.02 | E14: =AVERAGE(Sheet3!$E$6,Sheet3!$D$6) -> 0.9116323888 | F14: =AVERAGE(Sheet3!H5,Sheet3!N5) -> 1.801552571e-05 | G14: =ergun(B14,C14,D14,$B$3,$B$2,F14,E14,m_1) -> 5000
A15: DDD | B15: 5 | C15: 5 | D15: 0.02 | E15: =AVERAGE(Sheet3!$H$6,Sheet3!$N$6) -> 1.221429527 | F15: =AVERAGE(Sheet3!N5,Sheet3!H5) -> 1.801552571e-05 | G15: =ergun(B15,C15,D15,$B$3,$B$2,F15,E15,m_2) -> 4960.503632 | P15: =P_0+F_0-G20 -> 96965.33885
A16: PH | B16: 5 | C16: 5 | D16: 0.02 | E16: =AVERAGE(Sheet3!$O$6,Sheet3!$P$6) -> 1.211829662 | F16: =AVERAGE(Sheet3!O5,Sheet3!P5) -> 1.812584742e-05 | G16: =ergun(B16,C16,D16,$B$3,$B$2,F16,E16,m_5) -> 562.8680727
A17: F | B17: 5 | C17: 5 | D17: 0.02 | E17: =AVERAGE(Sheet3!$M$6,Sheet3!$Q$6) -> 1.211829543 | F17: =AVERAGE(Sheet3!M5,Sheet3!Q5) -> 1.812584742e-05 | G17: =ergun(B17,C17,D17,$B$3,$B$2,F17,E17,m_4) -> 562.8680727
A18: AF | B18: 5 | C18: 5 | D18: 0.02 | E18: =AVERAGE(Sheet3!$I$6,Sheet3!$L$6) -> 1.211829662 | F18: =AVERAGE(Sheet3!$L$5,Sheet3!$I$5) -> 1.812584742e-05 | G18: =ergun(B18,C18,D18,$B$3,$B$2,F18,E18,m_3) -> 562.8680727
A19: C1 | B19: 5 | C19: 5 | D19: 0.02 | E19: =AVERAGE(Sheet3!$G$6,Sheet3!$F$6) -> 1.211829662 | F19: =AVERAGE(Sheet3!F5,Sheet3!G5) -> 1.812584742e-05 | G19: =ergun(B19,C19,D19,$B$3,$B$2,F19,E19,m_2) -> 5000
A20: C2 | B20: 5 | C20: 5 | D20: 0.02 | E20: =AVERAGE(Sheet3!$C$6,Sheet3!$D$6) -> 1.046658456 | F20: =AVERAGE(Sheet3!C5,Sheet3!D5) -> 2.059218605e-05 | G20: =ergun(B20,C20,D20,$B$3,$B$2,F20,E20,m_1) -> 4359.66115 | P20: =F_0+P_0 -> 101325
K21: =L12-G16 -> 95762.13193
A22: Fans | B22: Pa | D22: Pag | E22: Desired Pressure guage
A23: F_0 | B23: 0 | D23: =L12-101325+5000 -> 1.640000846e-08
A24: F_1 | B24: 9359.66115 | D24: =K24-101325-G15 -> -1.430544216e-08 | K24: =K21+F_2 -> 106285.5036
A25: F_2 | B25: 10523.37171 | D25: =P12-5000-101325 -> -1.702574082e-09
D26: =SUMSQ(D23:D25) -> 4.765047116e-16
A27: Pressure Balances | B27: Pa
A28: 1 | B28: =P_0+F_0-G20+F_1-G14-P_1 -> 3.304739948e-08
A29: 2 | B29: =P_0+F_0-G19-G18+F_2-G15-P_2 -> 5.893525667e-09 | L29: =K24-G15 -> 101325
A30: 3 | B30: =G18-G17 -> 3.267814463e-09
A31: 4 | B31: =G16-G17 -> 2.346496331e-08
A32: SSR | B32: =SUMSQ(B28:B31) -> 1.688147372e-15
A34: Mass Balances | B34: kg/s
A35: 1 | B35: =m_0-m_1-m_2 -> -4.414425803e-08
A36: 2 | B36: =m_2-m_3-m_4-m_5 -> 5.666863956e-08
A37: SSR | B37: =SUMSQ(B35:B36) -> 5.160050226e-15
A39: OF | B39: =B32+B37+D26 -> 7.324702309e-15

Sheet Sheet3
A1: Stream Table
B2: 1 | C2: 2 | D2: 3 | E2: 4 | F2: 5 | G2: 6 | H2: 7 | I2: 8 | J2: 9 | K2: 10 | L2: 11 | M2: 12 | N2: 13 | O2: 14 | P2: 15 | Q2: 16 | R2: 17 | S2: 18
A3: Temprature K | B3: 294.2609863 | C3: 294.2609863 | D3: 404.321106 | E3: 378.460968 | F3: 294.2609863 | G3: 294.2609863 | H3: 289.6849365 | I3: 294.2609863 | J3: 294.2609863 | K3: 294.2609863 | L3: 294.2609863 | M3: 294.2609863 | N3: 294.2609863 | O3: 294.2609863 | P3: 294.2609863 | Q3: 294.2609863 | R3: 295 | S3: 295
A4: Pressure Kpa | B4: 102732 | C4: 102732 | D4: 102732 | E4: 102732 | F4: 102732 | G4: 102732 | H4: 102732 | I4: 102732 | J4: 102732 | K4: 102732 | L4: 102732 | M4: 102732 | N4: 102732 | O4: 102732 | P4: 102732 | Q4: 102732 | R4: 102732 | S4: 102732
A5: Viscosity | B5: 1.812584742e-05 | C5: 1.812584742e-05 | D5: 2.305852468e-05 | E5: 2.195709567e-05 | F5: 1.812584742e-05 | G5: 1.812584742e-05 | H5: 1.7905204e-05 | I5: 1.812584742e-05 | J5: 1.812584742e-05 | K5: 1.812584742e-05 | L5: 1.812584742e-05 | M5: 1.812584742e-05 | N5: 1.812584742e-05 | O5: 1.812584742e-05 | P5: 1.812584742e-05 | Q5: 1.812584742e-05 | R5: 0 | S5: 0
A6: Density kg/m3 | B6: 1.211829662 | C6: 1.211829662 | D6: 0.8814872503 | E6: 0.9417775273 | F6: 1.211829662 | G6: 1.211829662 | H6: 1.231029391 | I6: 1.211829662 | J6: 1.211829543 | K6: 1.211829662 | L6: 1.211829662 | M6: 1.211829543 | N6: 1.211829662 | O6: 1.211829662 | P6: 1.211829662 | Q6: 1.211829543 | R6: 0 | S6: 0
F16: =AVERAGE(Sheet3!P5,Sheet3!O5) -> 1.812584742e-05
B39: 0

Sheet Sheet2
A1: H2O | B1: UDD/ KJ/kmol | C1: t/K | D1: kg/s | E1: kmol/s | F1: H KW
A2: HIN H20(l) | B2: =H_H2O(C2) -> -279683.8088 | C2: 300 | D2: 1000 | E2: =D2/16 -> 62.5 | F2: =B2*E2 -> -17480238.05
A3: Hout H2O(g) | B3: =H_H2Og(C3) -> -241956.6881 | C3: 294.2609863 | D3: 1000 | E3: =D3/16 -> 62.5 | F3: =B3*E3 -> -15122293.01
C4: 384.4440002 | E4: H needed | F4: =-(F3-F2)/10^6 -> -2.357945042 | G4: MW
A6: H2O | B6: DDD/ KJ/kmol | C6: t/K | D6: kg/s | E6: kmol/s | F6: H KW
A7: HIN H20(l) | B7: =H_H2O(C7) -> -279834.2842 | C7: 298 | D7: 1000 | E7: =D7/16 -> 62.5 | F7: =B7*E7 -> -17489642.76
A8: Hout H2O(g) | B8: =H_H2Og(C8) -> -241956.6881 | C8: 294.2609863 | D8: 1000 | E8: =D8/16 -> 62.5 | F8: =B8*E8 -> -15122293.01
B9: 0 | C9: 294.2609863 | E9: H needed | F9: =-(F8-F7)/10^6 -> -2.367349755 | G9: MW
B10: 0
B11: 0
B23: 0
B24: 0
B25: 0
B39: 0
